Cogmind - Beta 17 @@@ ROGUE MODE // 2026.08.06 @ 23:32:25 Player: Momo Result: Destroyed by 2V-GKP(R) with Subdweller Laser Performance ------------- Evolutions (0) 0 Regions Visited (2) 400 Robots Destroyed (13) 65 Value Destroyed (204) 204 Prototype IDs (0) 0 Alien Tech Used (0) 0 Bonus (0) 0 TOTAL SCORE: 669 Bonus ------- None Cogmind --------- Core Integrity 0/250 Matter 270/300 Energy 89/100 System Corruption 0% Temperature Warm (199) Movement Core (450) Ox8 Location -10/Subcaves Parts ------- > --- POWER (1) -------- (None) > --- PROPULSION (2) --- (None) > --- UTILITY (2) ------ Large Storage Unit > --- WEAPON (2) ------- Beam Cannon Battle Cannon > --- INVENTORY (15) --- Hover Unit Medium Storage Unit Huge Storage Unit High-capacity Matter Pod (126) Seismic Detector Transport Network Coupler Light Armor Plating Light Armor Plating Assault Rifle Peak State ------------ > --- POWER ------------ Light Ion Engine > --- PROPULSION ------- Wheel Wheel > --- UTILITY ---------- Large Storage Unit Light Armor Plating > --- WEAPON ----------- Beam Cannon Battle Cannon > --- INVENTORY -------- Hover Unit Medium Storage Unit Huge Storage Unit High-capacity Matter Pod Seismic Detector Transport Network Coupler Light Armor Plating Light Armor Plating Assault Rifle [Rating: 8] Favorites ----------- Power Light Ion Engine Engine Light Ion Engine Propulsion Wheel Wheel Wheel Utility Light Armor Plating Device Seismic Detector Storage Large Storage Unit Protection Light Armor Plating Weapon Beam Cannon Energy Cannon Beam Cannon Ballistic Cannon Battle Cannon Launcher Grenade Launcher Build | -11 -10 -10 ------- Run | Yrd Mat Sub Slots Evolved . | . . . Power . | . . . Propulsion . | . . . Utility . | . . . Weapon . | . . . Parts Attached 10 | 2 7 1 Power 1 | . 1 . Engine 1 | . 1 . Core . | . . . Reactor . | . . . Propulsion 2 | 2 . . Treads . | . . . Leg . | . . . Wheel 2 | 2 . . Hover . | . . . Flight . | . . . Utility 4 | . 4 . Device 1 | . 1 . Storage 1 | . 1 . Processor . | . . . Hackware . | . . . Protection 2 | . 2 . Artifact . | . . . Weapon 3 | . 2 1 Energy Gun . | . . . Energy Cannon 1 | . 1 . Ballistic Gun . | . . . Ballistic Cannon 1 | . . 1 Launcher 1 | . 1 . Special Weapon . | . . . Impact Weapon . | . . . Slashing Weapon . | . . . Piercing Weapon . | . . . Special Melee Weapon . | . . . Unidentified Prototypes . | . . . Parts Lost 6 | . 2 4 Power 1 | . . 1 Propulsion 2 | . . 2 Utility 2 | . 1 1 Weapon 1 | . 1 . Highest Loss Streak 4 | . 1 4 To Critical Strikes . | . . . Average Backups 6 | . 5 9 Power . | . . . Propulsion . | . . 1 Utility 4 | . 4 7 Weapon 1 | . 1 1 Tool/Special . | . . . Unused Backups 9 | . 1 8 Power . | . . . Propulsion 1 | . . 1 Utility 7 | . 1 6 Weapon 1 | . . 1 Tool/Special . | . . . Average Slot Usage (%) 81 | . 80 82 Engine 11 | . 10 11 Wheel 27 | . 28 25 Device 3 | . 4 . Storage 8 | . 7 14 Protection 10 | . 9 14 Energy Cannon 9 | . 8 14 Launcher 9 | . 11 . Peak Build Rating 8 | 2 7 8 Average Rating 5 | 1 5 6 On Entrance 2 | . 2 6 Avg Prop Armor Cover (%) 18 | . 18 . Naked Turns . | . . . Heaviest Build 32 | . 32 29 Greatest Support 20 | 20 20 20 Greatest Overweight (x) 2 | . 2 1 Average Overweight (x) . | . . 1 Largest Inventory Capacity 15 | 5 15 15 Average Capacity 10 | 5 10 15 Most Carried 10 | 1 10 10 Average Carried 6 | . 5 9 Final Capacity 15 | 5 15 15 Final Carried 9 | 1 9 9 Class Distribution -------------------- 100% | Mutant Dominant Class ---------------- Mutant | -10/Materials Mutant | -10/Subcaves Resources | -11 -10 -10 ----------- Run | Yrd Mat Sub Matter Collected 526 | 145 320 61 Remotely . | . . . Salvage Created 194 | . 92 102 Parts 18 | . 17 1 Haulers Intercepted 1 | . 1 . Recyclers Shooed . | . . . Parts Field Recycled . | . . . Retrieved Matter . | . . . Parts Self-Destructed . | . . . Prevented . | . . . Parts Restored . | . . . Kills | -11 -10 -10 ------- Run | Yrd Mat Sub Combat Hostiles Destroyed 8 | . 7 1 Cannons 1 | . . 1 AOE 7 | . 7 . Classes Destroyed 9 | . 7 2 Worker 1 | . 1 . Builder 1 | . 1 . Hauler 1 | . 1 . Operator 1 | . 1 . Watcher 1 | . 1 . Swarmer 6 | . 6 . Grunt 1 | . 1 . Cobbler 1 | . . 1 Subdweller 1 | . . 1 Best Kill Streak 4 | . 4 1 Combat Bots Only 3 | . 3 1 Max Kills in Single Turn 3 | . 3 1 Gunslinging . | . . . Exploded 3 | . 3 . Melee . | . . . Uniques/NPCs Destroyed . | . . . Combat | -11 -10 -10 -------- Run | Yrd Mat Sub Hostile Shots Fired 40 | . 14 26 Missed 9 | . 3 6 Hits 31 | . 11 20 Projectile 31 | . 11 20 Critical Strikes 1 | . . 1 Damage Taken 829 | . 352 477 Core 257 | . 139 118 Absorbed by Shields . | . . . Core Remaining (%) 100 | 100 . . Volleys Fired 34 | . 15 19 Largest 2 | . 1 2 Hottest 93 | . 60 93 Shots Fired 42 | . 15 27 Gun . | . . . Cannon 30 | . 3 27 Launcher 12 | . 12 . Special . | . . . Kinetic 8 | . . 8 Thermal 22 | . 3 19 Explosive 12 | . 12 . Electromagnetic . | . . . Robot Hit Streak 18 | . 5 18 Robot Miss Streak 3 | . 3 3 Penetration Max . | . . . Secondary Targets . | . . . Shots Hit Robots 30 | . 8 22 Core Hits 24 | . 17 7 Critical Kills . | . . . Critical Parts Destroyed . | . . . Critical Strikes . | . . . Melee Attacks . | . . . Impact . | . . . Slashing . | . . . Piercing . | . . . Sneak Attacks . | . . . Combat Hostiles . | . . . Follow-up Attacks . | . . . Damage Inflicted 1097 | . 639 458 Guns . | . . . Cannons 493 | . 35 458 Explosions 604 | . 604 . Melee . | . . . Ramming . | . . . Kinetic 119 | . . 119 Thermal 374 | . 35 339 Explosive 604 | . 604 . Electromagnetic . | . . . Impact . | . . . Slashing . | . . . Piercing . | . . . Highest Corruption . | . . . Average Corruption . | . . . Corruption Purged . | . . . Corruption Blocked . | . . . Overload Shots . | . . . Overflow Damage 33 | . 33 . Projectiles . | . . . Explosions 33 | . 33 . Melee . | . . . Knockbacks 3 | . . 3 Impact . | . . . Kinetic 3 | . . 3 Secondary . | . . . Self-Inflicted Damage 245 | . 245 . Shots 6 | . 6 . Rammed . | . . . Targets Rammed . | . . . Kicked . | . . . Crushed . | . . . Highest Temperature 288 | . 52 288 Average Temperature 137 | . 22 210 Received Heat Transfer 452 | . 12 440 Effects 1 | . . 1 Interference 1 | . . 1 Siege Activations . | . . . Martial Activations . | . . . Shielding Activations . | . . . Robots Disrupted . | . . . Combat Hostiles . | . . . Robots Corrupted . | . . . Combat Hostiles . | . . . Parts Fried . | . . . Impact Corruptions . | . . . Robots Melted . | . . . Combat Hostiles . | . . . Parts Melted 1 | . . 1 Heat Transferred 777 | . 74 703 Parts Sabotaged . | . . . Parts Stolen . | . . . Parts Stripped . | . . . Power Chain Reactions . | . . . Alert | -11 -10 -10 ------- Run | Yrd Mat Sub Maximum Alert Level . | . . . Low Security (%) 100 | 100 100 . Level 1 . | . . . Level 2 . | . . . Level 3 . | . . . Level 4 . | . . . Level 5 . | . . . High Security . | . . . Max Security . | . . . Peak Influence 116 | . 116 . Initial . | . . . Average 49 | . 52 . Influence Increases 386 | . 386 . Destroy 0b10 Robot/C 140 | . 140 . Destroy 0b10 Robot/NC 25 | . 25 . Destroy Leader 24 | . 24 . Successful Hack 46 | . 46 . Disable Machine 45 | . 45 . Destroy Structure 106 | . 106 . Influence Decreases 386 | . 324 62 Entered New Map 30 | . . 30 Time Decay 336 | . 304 32 Lost Part 20 | . 20 . Squads Dispatched . | . . . Investigation . | . . . Extermination . | . . . Reinforcement . | . . . Assault . | . . . Garrison . | . . . Intercept . | . . . Searches Triggered . | . . . Construction Impeded . | . . . Haulers Reinforced . | . . . Active Scanning Responses . | . . . Cargo Convoy Interrupts . | . . . Stealth | -11 -10 -10 --------- Run | Yrd Mat Sub Distress Signals 3 | . 3 . Communications Jammed . | . . . Distress Signals . | . . . Times Spotted 24 | . 20 4 Peak Tracking Total 4 | . 4 3 Tactical Retreats 1 | . 1 . Traps | -11 -10 -10 ------- Run | Yrd Mat Sub Traps Triggered . | . . . Indirectly . | . . . Trap Hack Attempts . | . . . Triggered . | . . . Disarmed . | . . . Reprogrammed . | . . . Reused . | . . . Traps Extracted . | . . . Installed . | . . . Triggered . | . . . Machines | -11 -10 -10 ---------- Run | Yrd Mat Sub Machines Disabled 3 | . 3 . Max in Single Turn 2 | . 2 . Machines Repaired . | . . . Machines Dismantled . | . . . Machines Sabotaged . | . . . Overloaded Fab Kills . | . . . Hacking | -11 -10 -10 --------- Run | Yrd Mat Sub Machines Accessed 8 | . 8 . Terminals 6 | . 6 . Fabricators . | . . . Repair Stations . | . . . Recycling Units 2 | . 2 . Scanalyzers . | . . . Garrison Access . | . . . Total Hacks 21 | . 21 . Successful 12 | . 12 . Failed 9 | . 9 . Catastrophic . | . . . Database Lockouts . | . . . Manual 15 | . 15 . Terminals 17 | . 17 . Fabricators . | . . . Repair Stations . | . . . Recycling Units 4 | . 4 . Scanalyzers . | . . . Garrison Access . | . . . Terminal Hacks 4 | . 4 . Robot Analysis 2 | . 2 . Registered Components 1 | . 1 . Zone Layout 1 | . 1 . Fabricator Hacks . | . . . Repair Station Hacks . | . . . Recycling Unit Hacks 1 | . 1 . Retrieve Components 1 | . 1 . Scanalyzer . | . . . Garrison Access Hacks . | . . . Unauthorized Hacks 7 | . 7 . Terminals 7 | . 7 . Assimilate 1 | . 1 . Botnet 2 | . 2 . Operators 1 | . 1 . Skim 3 | . 3 . Fabricators . | . . . Repair Stations . | . . . Recycling Units . | . . . Scanalyzers . | . . . Garrison Access . | . . . Data Cores Recovered 1 | . 1 . Used . | . . . Hacking Detections 5 | . 5 . Full Trace Events . | . . . Feedback Events . | . . . Feedback Blocked . | . . . Robot Schematics Acquired . | . . . Robots Built . | . . . Authchips . | . . . Time . | . . . Total Robot Build Rating . | . . . Part Schematics Acquired . | . . . Parts Built . | . . . Authchips . | . . . Time . | . . . Total Part Build Rating . | . . . Part Studies Acquired . | . . . Parts Repaired . | . . . Time . | . . . Parts Recycled . | . . . Recycled Matter . | . . . Retrieved Matter . | . . . Retrieved Components 1 | . 1 . Parts Scanalyzed . | . . . Part Schematics Acquired . | . . . Parts Damaged . | . . . Bothacking | -11 -10 -10 ------------ Run | Yrd Mat Sub Used RIF Installer . | . . . Robots Hacked . | . . . Non-combat . | . . . Combat . | . . . Robot Hacks Applied . | . . . Relay Couplers Released . | . . . Fabnet Peak Effective % . | . . . Robots Rewired . | . . . Allies Hacked . | . . . Hacks Repelled . | . . . Allies | -11 -10 -10 -------- Run | Yrd Mat Sub Total Allies . | . . . Largest Group . | . . . Highest-Rated Group . | . . . Highest-Rated Ally . | . . . Total Orders . | . . . Ally Attacks . | . . . Total Damage . | . . . Kills . | . . . Allies Corrupted . | . . . Allies Melted . | . . . Intel | -11 -10 -10 ------- Run | Yrd Mat Sub Active Infowar (turns) 294 | . 294 . Seismic 294 | . 294 . Robot Analysis Total 2 | . 2 . Derelict Logs Recovered . | . . . Drone Launches . | . . . Drone Recoveries . | . . . Exploration | -11 -10 -10 ------------- Run | Yrd Mat Sub Turns Passed 1074 | 35 860 179 Spaces Moved 1093 | 36 936 121 Core 233 | 9 224 . Treads . | . . . Legs . | . . . Wheels 860 | 27 712 121 Hover . | . . . Flight . | . . . Fastest Speed 50 | 50 50 95 Average Speed 84 | 72 83 95 Slowest Speed 150 | 80 150 95 Overloaded Moves . | . . . Propulsion Burnouts . | . . . Robots Hopped . | . . . Potential Cave-ins . | . . . Cave-ins Triggered . | . . . Exploration Rate (%) 35 | 3 96 8 Regions Visited 2 Branch Regions 1 Pre-discovered Areas . | . . . Known Exits Taken . | . . . Unknown Exits Taken 2 | 1 1 . Scrap Searched . | . . . Spaces Dug . | . . . Terrain Destroyed 113 | . 113 . Melee . | . . . Projectile . | . . . AOE 113 | . 113 . Terrain Rammed . | . . . Walls Destroyed . | . . . Machines Disabled . | . . . Actions | -11 -10 -10 --------- Run | Yrd Mat Sub Total 1205 | 43 1003 159 Wait 55 | 5 33 17 Move 1091 | 35 935 121 Hop . | . . . Pick Up 14 | 1 12 1 Fast Attach 5 | 2 3 . Attach 4 | . 3 1 Detach . | . . . Swap 1 | . 1 . Drop 1 | . 1 . Fire 34 | . 15 19 Melee . | . . . Ram . | . . . Kick . | . . . Crush . | . . . Escape Stasis . | . . . Rewire . | . . . Trap . | . . . Miscellaneous . | . . . Route ------- -11/Scrapyard -10/Materials (discovered 5 exits: [*Mat x3] / [*Min] / [*Sub]) -10/Subcaves History --------- Turn | Location | Event 3 | -11/Scrapyard | Discovered new exit (range 15) 36 | -11/Scrapyard | Entered Materials 49 | -10/Materials | Discovered new exit (range 16) 84 | -10/Materials | Discovered new exit (range 16) 264 | -10/Materials | Discovered new exit (range 14) 321 | -10/Materials | Build established: Mutant 536 | -10/Materials | Derelicts attacked the area 735 | -10/Materials | Discovered new exit (range 14) 736 | -10/Materials | Core integrity fell below 50% 888 | -10/Materials | Discovered new exit (range 10) 896 | -10/Materials | Entered Subcaves 1060 | -10/Subcaves | Core integrity fell below 20% 1075 | -10/Subcaves | Destroyed by 2V-GKP(R) with Subdweller Laser Last Messages --------------- 01012_ Acquired 12 matter. 01015_ Acquired 13 matter. 01036_ KO-L9S(O) cries out in pain. 01036_ KO-L9S(O) destroyed. 01043_ Acquired Battle Cannon. 01049_ Lgt. Ion Engine destroyed. 01049_ TK-UJ9(R) knocked back. 01051_ Subatomizers dissect the Cobbler Unit. 01052_ Sub. Beam Cannon melted. 01052_ TK-UJ9(R) destroyed. 01057_ Wheel destroyed. 01058_ 2V-GKP(R) knocked back. 01059_ Critical hit (Meltdown: +290). 01061_ 2V-GKP(R) knocked back. 01063_ Wheel destroyed. 01066_ Subatomizers dissect the Cobbler Unit. 01069_ Overheating: System interference. 01069_ Battle Cannon temporarily disabled. 01073_ X0-SL9(R): "SUBMAD!" 01073_ Lgt. Armor Plating destroyed. Map ----- +----------------------------------------------------+ | ?????????????????????????????## ###??????????????? | | ????????????????????????????## #??????????????? | | ???????????????????????????## % ##?????????????? | | ????????????????????########% #?????????????? | | ???????????????????## % ##?????????????? | | ???????????????????# ##??????????????? | | ???????????????????# %## % #???????????????? | | ???????????????????## ??### #???????????????? | | ??????????????####?# #???## ##??????????????? | | ??????????????# % ## #????##% #??????????????? | | ???????????????# ## #?###### #??????????????? | | ????????????????# # ### # ##??????????????? | | ??????????????????# #???????????????? | | ?????????? ???????# #???????????????? | | ??????????"" ?????## ## #???????????????? | | ?????????"" #???# ########???????????????? | | ?????????" ??# ##??????????????????????? | | ???????""" ?## ##???????????????????????? | | ??????# ?## #????????????????????????? | | ?????? ## #????????????????????????? | | ?????? % ##???????????????????????? | | ?????? R ###?????????????????????? | | ???????# ### R ##????????????????????? | | ???????## ?????# ###??????????????????? | | ???????????????# ## %! #??????????????????? | | ???????????????## ####@ % #??????????????????? | | ????????????????#####???##% #??????????????????? | | ?????????????????????????# % #??????????????????? | | ?????????????????????????# R #??????????????????? | | ?????????????????????????## #?????????????????? | | ??????????????????????????? ##?????????????????? | | ??????????????????????????? ##??????????????????? | | ???????????????????????????""#???????????????????? | | ??????????????????????????? ""???????????????????? | | ??????????????????????????? ???????????????????? | | ??????????????????????????? ???????????????????? | | ???????????????????????????# ????????????????????? | | ???????????????????????????? ????????????????????? | | ?????????????????????????????????????????????????? | | ?????????????????????????????????????????????????? | | ?????????????????????????????????????????????????? | | ?????????????????????????????????????????????????? | | ?????????????????????????????????????????????????? | | ?????????????????????????????????????????????????? | | ?????????????????????????????????????????????????? | | ?????????????????????????????????????????????????? | | ?????????????????????????????????????????????????? | | ?????????????????????????????????????????????????? | | ?????????????????????????????????????????????????? | | ?????????????????????????????????????????????????? | +----------------------------------------------------+ Best States ------------- Heat Dissipation 25 Energy Generation 10 Energy Capacity 125 Matter Stores 300 Matter Capacity 300 Sight Range 16 Terrain Scan Density 10 Armor Coverage 150 Evasion (%) 50 Item Schematics ----------------- None Robot Schematics ------------------ None Fabricated ------------ Nothing Repaired ---------- Nothing Studied --------- None Alien Tech Used ----------------- None Achievements -------------- None Challenges ------------ None Game ------ Seed DisruptionMicroTracker Manual? 0 Play Time 00:09:44 Cumulative 489.5 hours Start 2026.08.06 @ 23:23:41 End 2026.08.06 @ 23:32:25 Sessions 1 Manual Loads 0 Difficulty Rogue Special Mode None Game No. 252 Rogue 248 Adventurer 0 Explorer 4 Win Type - Total 27 Types 9/1/2/6/2/2/3/1/1/0 Lore% 69 Gallery% 75 Achievement% 62 Wizard Run 0 Options --------- Layout 1 ASCII 0 Keyboard 0 Movement Mouse Keybinds 0 Fullscreen 1 Font 24/Smallcaps Map View 50x35 Zoom Use 0% Tactical HUD 1 Map Filters NONE Filters NONE Steam 1 RUN: ebd6af49-d286-4c35-ab88-9415b3b79741